Cogmind - Beta 16.1 @@@ ROGUE MODE // 2026.04.13 @ 19:08:21 Player: Krysmphoenix Result: Destroyed by QN-INH(R) with Subdweller Beam Cannon Performance ------------- Evolutions (0) 0 Regions Visited (2) 400 Robots Destroyed (10) 50 Value Destroyed (144) 144 Prototype IDs (0) 0 Alien Tech Used (0) 0 Bonus (0) 0 TOTAL SCORE: 594 Bonus ------- None Cogmind --------- Core Integrity 0/250 Matter 300/300 Energy 59/100 System Corruption 0% Temperature Cool (9) Movement Rolling (95) Ox1 Location -10/Subcaves Parts ------- > --- POWER (1) -------- (None) > --- PROPULSION (2) --- Wheel > --- UTILITY (2) ------ Medium Storage Unit Subdweller Optics > --- WEAPON (2) ------- Medium Laser > --- INVENTORY (10) --- Light Ion Engine Large Storage Unit Tractor Beam Peak State ------------ > --- POWER ------------ Ion Engine > --- PROPULSION ------- Wheel Wheel > --- UTILITY ---------- Medium Storage Unit Subdweller Optics > --- WEAPON ----------- Medium Laser Medium Laser > --- INVENTORY -------- Ion Engine Light Ion Engine Wheel Large Storage Unit Tractor Beam [Rating: 8] Favorites ----------- Power Ion Engine Engine Ion Engine Propulsion Wheel Wheel Wheel Utility Tractor Beam Device Tractor Beam Storage Medium Storage Unit Weapon Medium Laser Energy Gun Medium Laser Build | -11 -10 -10 ------- Run | Yrd Mat Sub Slots Evolved . | . . . Power . | . . . Propulsion . | . . . Utility . | . . . Weapon . | . . . Parts Attached 14 | 9 2 3 Power 2 | 1 . 1 Engine 2 | 1 . 1 Core . | . . . Reactor . | . . . Propulsion 5 | 4 . 1 Treads . | . . . Leg . | . . . Wheel 5 | 4 . 1 Hover . | . . . Flight . | . . . Utility 5 | 2 2 1 Device 2 | 1 . 1 Storage 3 | 1 2 . Processor . | . . . Hackware . | . . . Protection . | . . . Artifact . | . . . Weapon 2 | 2 . . Energy Gun 2 | 2 . . Energy Cannon . | . . . Ballistic Gun . | . . . Ballistic Cannon . | . . . Launcher . | . . . Special Weapon . | . . . Impact Weapon . | . . . Slashing Weapon . | . . . Piercing Weapon . | . . . Special Melee Weapon . | . . . Unidentified Prototypes . | . . . Parts Lost 4 | . . 4 Power 2 | . . 2 Propulsion 1 | . . 1 Utility . | . . . Weapon 1 | . . 1 Highest Loss Streak 4 | . . 4 To Critical Strikes . | . . . Average Backups 3 | 2 3 3 Power 1 | . 1 1 Propulsion 1 | 1 1 . Utility . | . . 1 Weapon . | . . . Tool/Special . | . . . Unused Backups 5 | 3 . 2 Power 1 | . . 1 Propulsion 2 | 2 . . Utility . | . . . Weapon 2 | 1 . 1 Tool/Special . | . . . Average Slot Usage (%) 98 | . 100 96 Engine 13 | . 14 12 Wheel 27 | . 28 27 Device 14 | . 14 14 Storage 14 | . 14 14 Energy Gun 27 | . 28 26 Peak Build Rating 8 | 7 7 8 Average Rating 6 | 5 7 7 On Entrance 4 | . 7 7 Avg Prop Armor Cover (%) . | . . . Naked Turns . | . . . Heaviest Build 30 | 15 30 21 Greatest Support 32 | 32 26 20 Greatest Overweight (x) 1 | . 1 1 Average Overweight (x) . | . . . Largest Inventory Capacity 15 | 8 15 10 Average Capacity 8 | 7 9 10 Most Carried 6 | 6 4 5 Average Carried 3 | 2 2 3 Final Capacity 10 | 8 10 10 Final Carried 4 | 3 4 3 Class Distribution -------------------- 100% | Mutant Dominant Class ---------------- Mutant | -10/Materials Mutant | -10/Subcaves Resources | -11 -10 -10 ----------- Run | Yrd Mat Sub Matter Collected 340 | 290 30 20 Remotely 60 | 30 30 . Salvage Created 284 | 159 37 88 Parts 20 | 13 4 3 Haulers Intercepted . | . . . Recyclers Shooed 1 | 1 . . Parts Field Recycled . | . . . Retrieved Matter . | . . . Parts Self-Destructed 1 | . . 1 Prevented . | . . . Parts Restored . | . . . Kills | -11 -10 -10 ------- Run | Yrd Mat Sub Combat Hostiles Destroyed 5 | . 3 2 Guns 5 | . 3 2 Classes Destroyed 4 | 2 1 1 Tunneler 4 | 4 . . Recycler 1 | 1 . . Swarmer 3 | . 3 . Subdweller 2 | . . 2 Best Kill Streak 5 | 5 3 1 Combat Bots Only 3 | . 3 1 Max Kills in Single Turn 1 | 1 1 1 Gunslinging . | . . . Exploded . | . . . Melee . | . . . Uniques/NPCs Destroyed . | . . . Combat | -11 -10 -10 -------- Run | Yrd Mat Sub Hostile Shots Fired 46 | . 13 33 Missed 12 | . . 12 Hits 34 | . 13 21 Projectile 34 | . 13 21 AOE 3 | . . 3 Critical Strikes 1 | . . 1 Damage Taken 716 | . 103 613 Core 250 | . 8 242 Absorbed by Shields . | . . . Core Remaining (%) 100 | 100 . . Volleys Fired 37 | 12 6 19 Largest 2 | 2 2 2 Hottest 100 | 100 100 100 Shots Fired 66 | 24 12 30 Gun 66 | 24 12 30 Cannon . | . . . Launcher . | . . . Special . | . . . Kinetic . | . . . Thermal 66 | 24 12 30 Explosive . | . . . Electromagnetic . | . . . Robot Hit Streak 13 | 5 2 13 Robot Miss Streak 3 | 3 3 1 Penetration Max . | . . . Secondary Targets . | . . . Shots Hit Robots 41 | 11 4 26 Core Hits 14 | 6 3 5 Critical Kills . | . . . Critical Parts Destroyed . | . . . Critical Strikes 7 | 2 . 5 Burn 7 | 2 . 5 Melee Attacks . | . . . Impact . | . . . Slashing . | . . . Piercing . | . . . Sneak Attacks . | . . . Combat Hostiles . | . . . Follow-up Attacks . | . . . Damage Inflicted 539 | 147 64 328 Guns 539 | 147 64 328 Cannons . | . . . Explosions . | . . . Melee . | . . . Ramming . | . . . Kinetic . | . . . Thermal 539 | 147 64 328 Explosive . | . . . Electromagnetic . | . . . Impact . | . . . Slashing . | . . . Piercing . | . . . Highest Corruption . | . . . Average Corruption . | . . . Corruption Purged . | . . . Corruption Blocked . | . . . Overload Shots . | . . . Overflow Damage . | . . . Projectiles . | . . . Explosions . | . . . Melee . | . . . Knockbacks . | . . . Impact . | . . . Kinetic . | . . . Secondary . | . . . Self-Inflicted Damage . | . . . Shots . | . . . Rammed . | . . . Targets Rammed . | . . . Kicked . | . . . Crushed . | . . . Highest Temperature 234 | 117 234 28 Average Temperature 70 | 48 129 13 Received Heat Transfer 135 | . . 135 Siege Activations . | . . . Martial Activations . | . . . Shielding Activations . | . . . Robots Disrupted . | . . . Combat Hostiles . | . . . Robots Corrupted . | . . . Combat Hostiles . | . . . Parts Fried . | . . . Impact Corruptions . | . . . Robots Melted . | . . . Combat Hostiles . | . . . Parts Melted 3 | . . 3 Heat Transferred 2109 | 592 185 1332 Parts Sabotaged . | . . . Parts Stolen . | . . . Parts Stripped . | . . . Power Chain Reactions . | . . . Alert | -11 -10 -10 ------- Run | Yrd Mat Sub Maximum Alert Level . | . . . Low Security (%) 100 | 100 100 . Level 1 . | . . . Level 2 . | . . . Level 3 . | . . . Level 4 . | . . . Level 5 . | . . . High Security . | . . . Max Security . | . . . Peak Influence 60 | 5 60 . Initial . | . . . Average 3 | . 5 . Influence Increases 95 | 25 70 . Destroy 0b10 Robot/C 60 | . 60 . Destroy 0b10 Robot/NC 25 | 25 . . Destroy Leader 10 | . 10 . Influence Decreases 95 | 25 20 50 Entered New Map 25 | . . 25 Time Decay 70 | 25 20 25 Squads Dispatched . | . . . Investigation . | . . . Extermination . | . . . Reinforcement . | . . . Assault . | . . . Garrison . | . . . Intercept . | . . . Searches Triggered . | . . . Construction Impeded . | . . . Haulers Reinforced . | . . . Active Scanning Responses . | . . . Cargo Convoy Interrupts . | . . . Stealth | -11 -10 -10 --------- Run | Yrd Mat Sub Distress Signals 1 | . 1 . Communications Jammed . | . . . Distress Signals . | . . . Times Spotted 9 | . 5 4 Peak Tracking Total 5 | . 5 3 Tactical Retreats . | . . . Traps | -11 -10 -10 ------- Run | Yrd Mat Sub Traps Triggered . | . . . Indirectly . | . . . Trap Hack Attempts . | . . . Triggered . | . . . Disarmed . | . . . Reprogrammed . | . . . Reused . | . . . Traps Extracted . | . . . Installed . | . . . Triggered . | . . . Machines | -11 -10 -10 ---------- Run | Yrd Mat Sub Machines Disabled . | . . . Max in Single Turn . | . . . Machines Repaired . | . . . Machines Dismantled . | . . . Machines Sabotaged . | . . . Overloaded Fab Kills . | . . . Hacking | -11 -10 -10 --------- Run | Yrd Mat Sub Machines Accessed 2 | . 2 . Terminals 1 | . 1 . Fabricators . | . . . Repair Stations . | . . . Recycling Units 1 | . 1 . Scanalyzers . | . . . Garrison Access . | . . . Total Hacks 4 | . 4 . Successful 3 | . 3 . Failed 1 | . 1 . Catastrophic . | . . . Database Lockouts . | . . . Manual 4 | . 4 . Terminals 3 | . 3 . Fabricators . | . . . Repair Stations . | . . . Recycling Units 1 | . 1 . Scanalyzers . | . . . Garrison Access . | . . . Terminal Hacks . | . . . Fabricator Hacks . | . . . Repair Station Hacks . | . . . Recycling Unit Hacks . | . . . Scanalyzer . | . . . Garrison Access Hacks . | . . . Unauthorized Hacks 3 | . 3 . Terminals 2 | . 2 . Track 1 | . 1 . Botnet 1 | . 1 . Fabricators . | . . . Repair Stations . | . . . Recycling Units 1 | . 1 . Reject 1 | . 1 . Scanalyzers . | . . . Garrison Access . | . . . Data Cores Recovered . | . . . Used . | . . . Hacking Detections 2 | . 2 . Full Trace Events . | . . . Feedback Events . | . . . Feedback Blocked . | . . . Robot Schematics Acquired . | . . . Robots Built . | . . . Authchips . | . . . Time . | . . . Total Robot Build Rating . | . . . Part Schematics Acquired . | . . . Parts Built . | . . . Authchips . | . . . Time . | . . . Total Part Build Rating . | . . . Part Studies Acquired . | . . . Parts Repaired . | . . . Time . | . . . Parts Recycled . | . . . Recycled Matter . | . . . Retrieved Matter . | . . . Retrieved Components . | . . . Parts Scanalyzed . | . . . Part Schematics Acquired . | . . . Parts Damaged . | . . . Bothacking | -11 -10 -10 ------------ Run | Yrd Mat Sub Used RIF Installer . | . . . Robots Hacked . | . . . Non-combat . | . . . Combat . | . . . Robot Hacks Applied . | . . . Relay Couplers Released . | . . . Fabnet Peak Effective % . | . . . Robots Rewired . | . . . Allies Hacked . | . . . Hacks Repelled . | . . . Allies | -11 -10 -10 -------- Run | Yrd Mat Sub Total Allies . | . . . Largest Group . | . . . Highest-Rated Group . | . . . Highest-Rated Ally . | . . . Total Orders . | . . . Ally Attacks . | . . . Total Damage . | . . . Kills . | . . . Allies Corrupted . | . . . Allies Melted . | . . . Intel | -11 -10 -10 ------- Run | Yrd Mat Sub Active Infowar (turns) 80 | . . 80 Optics 80 | . . 80 Robot Analysis Total . | . . . Derelict Logs Recovered . | . . . Drone Launches . | . . . Drone Recoveries . | . . . Exploration | -11 -10 -10 ------------- Run | Yrd Mat Sub Turns Passed 590 | 171 205 214 Spaces Moved 456 | 105 216 135 Core 6 | 6 . . Treads . | . . . Legs . | . . . Wheels 450 | 99 216 135 Hover . | . . . Flight . | . . . Fastest Speed 50 | 50 80 80 Average Speed 85 | 95 80 84 Slowest Speed 100 | 100 95 95 Overloaded Moves . | . . . Propulsion Burnouts . | . . . Robots Hopped . | . . . Potential Cave-ins . | . . . Cave-ins Triggered . | . . . Exploration Rate (%) 18 | 7 36 13 Regions Visited 2 Branch Regions 1 Pre-discovered Areas . | . . . Known Exits Taken . | . . . Unknown Exits Taken 2 | 1 1 . Scrap Searched 3 | . . 3 Spaces Dug . | . . . Terrain Destroyed . | . . . Melee . | . . . Projectile . | . . . AOE . | . . . Terrain Rammed . | . . . Walls Destroyed . | . . . Machines Disabled . | . . . Actions | -11 -10 -10 --------- Run | Yrd Mat Sub Total 594 | 154 234 206 Wait 55 | 5 5 45 Move 454 | 104 215 135 Hop . | . . . Pick Up 22 | 17 3 2 Fast Attach . | . . . Attach 8 | 7 . 1 Detach . | . . . Swap 7 | 2 3 2 Drop 11 | 7 2 2 Fire 37 | 12 6 19 Melee . | . . . Ram . | . . . Kick . | . . . Crush . | . . . Escape Stasis . | . . . Rewire . | . . . Trap . | . . . Miscellaneous . | . . . Route ------- -11/Scrapyard -10/Materials (discovered 3 exits: [*Mat] / [*Min] / [*Sub]) -10/Subcaves (discovered 1 exit: [*Mat]) History --------- Turn | Location | Event 5 | -11/Scrapyard | Discovered new exit (range 16) 172 | -11/Scrapyard | Entered Materials 284 | -10/Materials | Discovered new exit (range 12) 316 | -10/Materials | Build established: Mutant 319 | -10/Materials | Discovered new exit (range 16) 348 | -10/Materials | Discovered new exit (range 7) 377 | -10/Materials | Entered Subcaves 378 | -10/Subcaves | Approached by a straggling Scientist 491 | -10/Subcaves | Disturbed a concealed Subdweller 541 | -10/Subcaves | Discovered new exit (range 9) 557 | -10/Subcaves | A Subdweller sparked back to life 557 | -10/Subcaves | A Subdweller sparked back to life 576 | -10/Subcaves | Core integrity fell below 50% 586 | -10/Subcaves | Core integrity fell below 20% 591 | -10/Subcaves | Destroyed by QN-INH(R) with Subdweller Beam Cannon Last Messages --------------- 00519_ Dropped Sub. Laser. 9E-B08(c): "I think it's somewhere south of here" 00541_ EXIT=FOUND 00557_ 4Y-RYD(R) creaks and sparks as it begins to move. 00557_ WN-ZLW(R) creaks and sparks as it begins to move. 00562_ Ion Engine destroyed. 00567_ 4Y-RYD(R) suffers critical hit (Burn). 00570_ 4Y-RYD(R) heat damages Sub. Monowheel. 00570_ 4Y-RYD(R) affixes Scrap Shield Fragment to Scrap Shield. 00574_ Ion Engine destroyed. 00574_ Med. Laser destroyed. 00574_ 4Y-RYD(R) destroyed. 00580_ Wheel destroyed. 00584_ WN-ZLW(R) suffers critical hit (Burn). 00586_ WN-ZLW(R) destroyed. Map ----- +----------------------------------------------------+ | ?????# ####?????????????#% "##" #???? | | ?????# ##???????????????##&%= ##### | | ????## ##?###??????????#[ # #" # # | | ????# ### ##?????????# %### ## | | ????# #?????????####?## #? | | ????##### ##???????????????### # ##?? | | ????????# ###??????????????????## ####??? ### | | ???????## ##????????????????????## ##??????? #?? | | ???????# #?????????????????##### #??????????? | | ???????# ##?????????????????# #??????????? | | ???????# #??????????????????## #??????????? | | ???????## #???????????????????# #####??????????? | | ????????###???????????????????# #??????????????? | | ??????????????????????????????# ##????##???????? | | ??????????????????????????????# #??? ####????? | | ??????????????????????????????# ### #????? | | ??????????????????????????????# % #?????? | | ?????????????????????????????## ##?????? | | ????????????????????????????# ;;#######??????? | | ????????????????????????#### ##???????????? | | ???????????????########## #???????????? | | ??????????????## < ; ;###?????????? | | ?????????????## *&= #?????????? | | ?????????????# &&R < #?????????? | | ?????????????## !%= #?????????? | | ??????????????### << @ #????????? | | ????????????????# ####????????? | | ????????????????## #???????????? | | ?????????????????# #???????????? | | ?????????????????#### ;; #; #???????????? | | ????????????????????#### ?# ;; ;#???????????? | | ???????????????????????##??##;; ;##???????????? | | ?????????????????????????????#; ;#????????????? | | ??????????????????????????????# ;#????????????? | | ?????????????????????????????? #????????????? | | ?????????????????????????????? ###????????????? | | ?????????????????????????????? ###??????????????? | | ?????????????????????????????? ##????????????????? | | ?????????????????????????????? ??????????????????? | | ?????????????????????????????? ??????????????????? | | ?????????????????????????????? ??????????????????? | | ?????????????????????????????? ??????????????????? | | ?????????????????????????????????????????????????? | | ?????????????????????????????????????????????????? | | ?????????????????????????????????????????????????? | | ?????????????????????????????????????????????????? | | ?????????????????????????????????????????????????? | | ?????????????????????????????????????????????????? | | ?????????????????????????????????????????????????? | | ?????????????????????????????????????????????????? | +----------------------------------------------------+ Best States ------------- Heat Dissipation 25 Energy Generation 10 Energy Capacity 250 Matter Stores 300 Matter Capacity 300 Sight Range 21 Terrain Scan Density 10 Evasion (%) 44 Item Schematics ----------------- None Robot Schematics ------------------ None Fabricated ------------ Nothing Repaired ---------- Nothing Studied --------- None Alien Tech Used ----------------- None Achievements -------------- None Challenges ------------ None Game ------ Seed TimingFortressPenetrator Manual? 0 Play Time 00:08:57 Cumulative 20.6 hours Start 2026.04.13 @ 19:00:01 End 2026.04.13 @ 19:08:21 Sessions 1 Manual Loads 0 Difficulty Rogue Special Mode None Game No. 37 Rogue 34 Adventurer 3 Explorer 0 Win Type - Total 1 Types 1/0/0/0/0/0/0/0/0/0 Lore% 23 Gallery% 20 Achievement% 22 Wizard Run 0 Options --------- Layout 1 ASCII 0 Keyboard 0 Movement Numpad Keybinds 0 Fullscreen 2 Font 24/Proggy Map View 50x35 Zoom Use 0% Tactical HUD 1 Map Filters NONE Filters NONE Steam 1 RUN: e6712259-74f2-4e8c-bdec-0040ed4fa116